bitfinex/quotes_SOLUSD_20240628
["timestamp","ask_amount","ask_price","bid_price","bid_amount"]
[1719582483430,21.6437,145.29,145.23,0.8191655]
[1719582483634,20.0,145.28,145.23,0.8191655]
[1719582484436,35.94,145.27,145.23,0.8191655]
[1719582484627,20.0,145.26,145.23,0.8191655]
[1719582487152,20.0,145.26,145.16,6.8888]
[1719582487446,21.6437,145.29,145.13,39.87263734]
[1719582487447,35.94,145.27,145.13,39.87263734]
[1719582487628,20.0,145.26,145.13,34.4472]
[1719582487939,20.0,145.26,145.14,6.8898]
[1719582488150,20.0,145.26,145.15,17.223]
[1719582488329,20.0,145.26,145.13,6.8902]
[1719582488652,35.94,145.23,145.12,17.2264]
[1719582488942,20.0,145.22,145.1,6.8916]
[1719582489122,20.0,145.22,145.09,24.9410655]
[1719582489320,6.5285,145.21,145.09,18.0488655]
[1719582489524,35.94,145.19,145.1,6.8913]
[1719582489854,20.0,145.18,145.09,18.0488655]
[1719582490229,20.0,145.18,145.1,6.8914]
[1719582490636,16.5612,145.17,145.09,0.8191655]
[1719582490949,20.0,145.16,145.09,0.8191655]
[1719582491922,6.1749,145.15,145.09,0.8191655]
[1719582492317,6.1749,145.15,145.09,7.7113655]
[1719582492729,6.1749,145.15,145.09,0.8191655]
[1719582493458,20.0,145.14,145.09,0.8191655]
[1719582499154,15.2048,145.13,145.0,24.1288]
[1719582499334,35.94,145.11,145.0,24.1288]
[1719582499655,20.0,145.1,145.0,6.8964]
[1719582499860,20.0,145.1,145.01,17.2395]
[1719582500160,15.2048,145.13,145.03,17.2374]
[1719582500449,20.0,145.12,145.03,17.2374]
[1719582501158,20.0,145.12,145.05,17.2351]
[1719582501357,20.0,145.12,145.06,6.8936]
[1719582501538,15.2048,145.13,145.07,17.2328]
[1719582501874,15.6109,145.17,145.11,6.8912]
[1719582502162,15.6109,145.17,145.12,6.8907]
[1719582502366,15.6109,145.17,145.07,2.97592204]
[1719582502528,15.6109,145.17,145.08,24.1235]
[1719582502729,15.6109,145.17,145.07,2.97592204]
[1719582502925,51.5509,145.17,145.07,2.97592204]
[1719582503153,20.0,145.16,145.05,24.1289]
[1719582503353,20.0,145.16,145.05,17.2351]
[1719582503555,20.0,145.16,145.07,17.2326]
[1719582503757,20.0,145.16,145.09,17.2303]
[1719582503961,20.0,145.16,145.07,6.8929]
[1719582504270,20.0,145.16,145.06,17.2332]
[1719582504563,20.0,145.16,145.03,17.2376]
[1719582504747,20.0,145.16,145.04,6.8943]
[1719582505076,20.0,145.16,145.03,17.2376]
[1719582505372,20.0,145.16,145.02,259.8]
[1719582505749,6.5711,145.15,145.02,266.6955]
[1719582506073,20.0,145.14,145.02,266.6955]
[1719582506372,51.297,145.13,144.99,6.8968]
[1719582506558,26.2902,145.12,144.98,6.8971]
[1719582506754,26.2902,145.12,144.99,6.897]
[1719582506943,26.2902,145.12,145.0,6.8965]
[1719582507144,26.2902,145.12,144.99,24.1388]
[1719582507553,26.2902,145.12,145.01,6.896]
[1719582507779,26.2902,145.12,145.0,6.8964]
[1719582508684,26.2902,145.12,145.01,17.2399]
[1719582508850,26.2902,145.12,145.02,6.8952]
[1719582509177,26.2902,145.12,145.01,17.2399]
[1719582509546,26.2902,145.12,145.01,24.1358]
[1719582509751,26.2902,145.12,145.02,6.8954]
[1719582510282,26.2902,145.12,145.01,17.2399]
[1719582510671,26.2902,145.12,144.99,6.8967]
[1719582511488,26.2902,145.12,144.98,24.14]
[1719582511662,26.2902,145.12,144.99,6.8969]
[1719582512364,26.2902,145.12,145.0,6.8964]
[1719582512559,26.2902,145.12,145.0,17.241]
[1719582512989,26.2902,145.12,145.02,6.8955]
[1719582513164,26.2902,145.12,144.97,17.2443]
[1719582513484,26.2902,145.12,144.99,17.2421]
[1719582513864,26.2902,145.12,145.01,6.8957]
[1719582514477,26.2902,145.12,144.99,17.2421]
[1719582514478,26.2902,145.12,144.99,24.1387]
[1719582514685,26.2902,145.12,145.0,6.8964]
[1719582515387,26.2902,145.12,144.99,17.2421]
[1719582515594,26.2902,145.12,144.98,6.897]
[1719582516061,26.2902,145.12,144.97,9.87587482]
[1719582517067,26.2902,145.12,144.98,6.8972]
[1719582517271,33.40894072,145.12,144.99,8.27604238]
[1719582517468,33.40894072,145.12,145.01,6.8956]
[1719582517660,33.40894072,145.12,145.02,8.27419004]
[1719582517857,33.40894072,145.12,145.02,1.37879004]
[1719582518073,13.40894072,145.12,145.02,17.2387]
[1719582518284,6.2902,145.12,145.02,17.2387]
[1719582518500,6.2902,145.12,145.04,17.2361]
[1719582518682,6.2902,145.12,145.05,51.8938]
[1719582518992,6.2902,145.12,145.05,45.0]
[1719582519677,6.2902,145.12,145.06,1.37832354]
[1719582519998,6.2902,145.12,145.07,17.2327]
[1719582520181,6.3281,145.16,145.08,51.8924]
[1719582520688,6.3281,145.16,145.08,45.0]
[1719582521674,7.11777339,145.15,145.08,45.0]
[1719582522174,7.11777339,145.15,145.07,45.0]
[1719582522489,20.0,145.14,145.07,62.2327]
[1719582522702,6.3281,145.16,145.1,6.8916]
[1719582523000,6.3281,145.16,145.11,45.0]
[1719582523176,6.078,145.2,145.13,6.89]
[1719582523374,6.078,145.2,145.11,17.2278]
[1719582523679,6.078,145.2,145.09,6.8922]
[1719582523893,6.078,145.2,145.1,6.8917]
[1719582524074,6.078,145.2,145.1,24.1207]
[1719582524390,6.078,145.2,145.13,6.8903]
[1719582524607,20.0,145.19,145.08,6.5008]
[1719582524904,6.078,145.2,145.14,6.8898]
[1719582525203,6.39,145.24,145.1,100.0]
[1719582525368,6.39,145.24,145.17,17.2209]
[1719582525569,6.39,145.24,145.19,6.8875]
[1719582525773,6.39,145.24,145.2,1.37712696]
[1719582526104,6.39,145.24,145.17,24.1092]
[1719582526412,6.39,145.24,145.18,6.8879]
[1719582526911,6.39,145.24,145.15,6.8889]
[1719582527616,6.39,145.24,145.16,6.8888]
[1719582527774,6.39,145.24,145.14,17.2243]
[1719582527979,20.0,145.23,145.11,17.2278]
[1719582528271,20.0,145.23,145.11,24.119]
[1719582528690,20.0,145.23,145.12,6.8906]
[1719582528893,20.0,145.23,145.09,2.97551182]
[1719582529104,55.94,145.23,145.09,9.86731182]
[1719582529275,15.3592,145.22,145.09,2.97551182]
[1719582529608,20.0,145.21,145.09,2.97551182]
[1719582529814,20.0,145.21,145.1,6.8917]
[1719582530293,20.0,145.21,145.11,6.8911]
[1719582530491,20.0,145.21,145.12,6.8908]
[1719582530672,20.0,145.21,145.13,24.1154]
[1719582530872,20.0,145.21,145.13,24.1155]
[1719582531102,20.0,145.21,145.1,17.2285]
[1719582531312,20.0,145.21,145.11,6.8911]
[1719582531799,20.0,145.21,145.1,24.1202]
[1719582532011,20.0,145.21,145.09,2.97551182]
[1719582532376,20.0,145.21,145.1,6.8916]
[1719582532770,20.0,145.21,145.09,27.09771182]
[1719582533396,20.0,145.21,145.09,20.20561182]
[1719582533711,6.1188,145.2,145.09,20.20561182]
[1719582534007,20.0,145.19,145.09,20.20561182]
[1719582534211,20.0,145.19,145.07,20.0]
[1719582534401,20.0,145.19,145.08,24.124]
[1719582534788,20.0,145.19,145.08,17.2316]
[1719582534984,20.0,145.19,145.09,6.8922]
[1719582535382,20.0,145.19,145.08,24.1241]
[1719582535581,16.425,145.18,145.05,17.2344]
[1719582535810,20.0,145.17,145.06,6.8933]
[1719582535990,20.0,145.17,145.07,6.8932]
[1719582536191,20.0,145.17,145.08,6.8925]
[1719582536390,20.0,145.17,145.09,6.8921]
[1719582536890,20.0,145.17,145.08,6.8927]
[1719582537091,20.0,145.17,145.07,17.2327]
[1719582537527,20.0,145.17,145.05,6.894]
[1719582537687,20.0,145.17,145.06,6.8936]
[1719582538491,6.2616,145.16,145.05,6.894]
[1719582538682,20.0,145.15,145.06,17.2339]
[1719582538887,20.0,145.15,145.05,6.8941]
[1719582539316,20.0,145.15,145.07,6.8932]
[1719582539884,20.0,145.15,145.05,24.1291]
[1719582540317,20.0,145.15,145.06,6.8936]
[1719582540701,20.0,145.15,145.05,24.1289]
[1719582540900,16.3835,145.14,145.04,6.8944]
[1719582541107,20.0,145.13,145.03,6.8948]
[1719582541292,20.0,145.13,145.04,6.8944]
[1719582541501,20.0,145.13,145.05,6.8941]
[1719582541926,20.0,145.13,145.01,17.2397]
[1719582542223,20.0,145.13,145.01,37.2397]
[1719582542421,20.0,145.13,145.01,17.2397]
[1719582542631,20.0,145.13,145.02,6.8953]
[1719582542917,6.1696,145.12,145.01,24.1356]
[1719582543119,20.0,145.11,145.01,17.2397]
[1719582543323,20.0,145.11,144.97,6.8976]
[1719582543324,15.1594,145.1,144.97,6.8976]
[1719582543520,26.0781,145.09,144.97,6.8976]
[1719582543899,26.0781,145.09,144.95,17.2463]
[1719582543900,26.0781,145.09,144.98,6.8974]
[1719582544322,26.0781,145.09,145.0,6.8965]
[1719582544705,26.0781,145.09,144.99,17.2423]
[1719582544906,26.0781,145.09,145.01,6.896]
[1719582545220,26.0781,145.09,145.01,17.2396]
[1719582545518,26.0781,145.09,145.04,17.2361]
[1719582545519,6.0781,145.09,145.04,17.2361]
[1719582545717,6.0781,145.09,145.04,24.1304]
[1719582546027,6.0781,145.09,145.04,17.2361]
[1719582546204,6.0781,145.09,145.02,6.8954]
[1719582546530,6.0781,145.09,145.03,17.2373]
[1719582546897,6.0781,145.09,145.03,24.1321]
[1719582547199,6.0781,145.09,145.04,6.8946]
[1719582547615,6.0781,145.09,145.02,6.8951]
[1719582547826,6.0781,145.09,145.01,6.8959]
[1719582548012,6.0781,145.09,144.95,100.0]
[1719582548013,6.0781,145.09,145.02,17.2387]
[1719582548906,6.0781,145.09,145.01,6.8958]
[1719582549413,6.0781,145.09,144.99,24.1386]
[1719582549731,20.0,145.08,144.98,6.8971]
[1719582550231,20.0,145.08,144.96,17.2454]
[1719582550603,20.0,145.08,144.97,6.8976]
[1719582551214,20.0,145.08,144.98,6.8974]
[1719582551950,20.0,145.08,144.97,6.8978]
[1719582552226,20.0,145.08,144.94,6.38691321]
[1719582552400,35.94,145.05,144.94,0.8191655]
[1719582552910,20.0,145.04,144.94,7.7182655]
[1719582553296,20.0,145.04,144.94,0.8191655]
[1719582553933,20.0,145.04,144.94,7.7184655]
[1719582554635,20.0,145.04,144.94,0.8191655]
[1719582555613,20.0,145.04,144.94,7.7184655]
[1719582555818,20.0,145.04,144.94,0.8191655]
[1719582557813,20.0,145.04,144.95,1.37935576]
[1719582558113,20.0,145.04,144.94,0.8191655]
[1719582559114,20.0,145.04,144.94,7.7184655]
[1719582559418,20.0,145.04,144.94,0.8191655]
[1719582559914,20.0,145.04,144.94,7.7184655]
[1719582560420,20.0,145.04,144.95,6.8988]
[1719582560923,20.0,145.04,144.95,17.2465]
[1719582561108,22.3877,145.06,144.95,24.1451]
[1719582561109,20.0,145.05,144.95,24.1451]
[1719582561314,20.0,145.05,144.96,6.8983]
[1719582561533,20.0,145.05,144.95,24.1453]
[1719582563045,20.0,145.05,144.95,17.2465]
[1719582563211,20.0,145.05,144.98,6.897]
[1719582563539,22.3877,145.06,144.99,6.897]
[1719582563742,7.11348177,145.1,144.96,121.3283]
[1719582563743,29.43588177,145.1,144.96,121.3283]
[1719582563907,29.43588177,145.1,145.06,6.8935]
[1719582564113,22.3224,145.1,145.07,1.37833315]
[1719582564313,22.3224,145.1,145.06,6.8935]
[1719582564314,15.7177,145.1,145.08,1.37827605]
[1719582565233,15.7177,145.1,145.09,1.37827132]
[1719582565431,15.7177,145.1,145.07,1.3782713]
[1719582565911,15.7177,145.1,145.05,34.4698]
[1719582566118,15.7177,145.1,145.05,17.2349]
[1719582566307,22.4741,145.14,145.07,17.2325]
[1719582566715,22.4741,145.14,145.06,6.8935]
[1719582566974,22.4741,145.14,145.05,6.894]
[1719582567611,22.4741,145.14,145.05,6.8939]
[1719582568019,22.4741,145.14,145.06,6.8936]
[1719582568517,22.4741,145.14,145.05,6.894]
[1719582568725,22.4741,145.14,145.03,5.48399545]
[1719582568930,20.0,145.13,144.97,6.3477]
[1719582569129,20.0,145.13,145.01,6.896]
[1719582569426,20.0,145.13,145.02,6.8951]
[1719582569640,20.0,145.13,145.02,17.2385]
[1719582570020,20.0,145.13,145.02,24.1339]
[1719582570221,20.0,145.13,145.03,6.8948]
[1719582570431,20.0,145.13,145.04,6.8946]
[1719582570627,20.0,145.13,145.03,6.8949]
[1719582571452,20.0,145.13,145.02,24.1339]
[1719582571814,20.0,145.13,145.05,6.8939]
[1719582572022,20.0,145.13,145.02,6.8953]
[1719582573035,20.0,145.13,145.03,6.8949]
[1719582573728,20.0,145.13,145.02,6.8954]
[1719582574045,15.2314,145.12,144.98,25.72163118]
[1719582574235,6.0766,145.1,144.98,25.72163118]
[1719582574424,20.0,145.09,145.0,6.8964]
[1719582574739,20.0,145.09,145.01,1.37882783]
[1719582575054,20.0,145.09,144.99,6.8968]
[1719582575218,20.0,145.09,144.98,15.37613118]
[1719582575418,20.0,145.09,144.99,6.897]
[1719582575632,20.0,145.09,145.01,6.8956]
[1719582576314,20.0,145.09,145.02,8.27429203]
[1719582576520,20.0,145.09,145.01,17.2398]
[1719582576748,20.0,145.09,145.02,6.8955]
[1719582576923,20.0,145.09,145.01,24.1357]
[1719582577446,20.0,145.09,145.02,6.8955]
[1719582577651,20.0,145.09,145.01,24.1357]
[1719582577833,20.0,145.09,145.02,6.8955]
[1719582578025,20.0,145.09,145.01,24.1357]
[1719582578532,20.0,145.09,145.01,17.2398]
[1719582579444,20.0,145.09,145.01,24.1358]
[1719582580150,20.0,145.09,145.03,17.2373]
[1719582580333,20.0,145.09,145.04,1.37859703]
[1719582580536,20.0,145.09,145.02,6.8954]
[1719582581154,20.0,145.09,145.02,17.2385]
[1719582581456,38.1066,145.1,145.01,6.8957]
[1719582582120,38.1066,145.1,144.99,17.2417]
[1719582582324,32.03,145.07,144.99,24.1384]
[1719582582821,16.588,145.06,144.98,2.97776941]
[1719582583021,20.0,145.05,144.96,29.62696537]
[1719582583245,20.0,145.05,144.95,382.8]
[1719582583246,6.3783,145.03,144.95,382.8]
[1719582583627,6.3783,145.03,144.95,389.6987]
[1719582583933,6.3783,145.03,144.96,6.8984]
[1719582584341,6.3783,145.03,144.95,400.0471]
[1719582584737,6.3783,145.03,144.96,6.898]
[1719582585053,6.3783,145.03,144.97,6.8978]
[1719582585252,6.3783,145.03,144.97,17.2445]
[1719582585442,6.3783,145.03,144.95,382.8]
[1719582585750,16.588,145.06,145.0,6.8961]
[1719582585946,16.588,145.06,144.99,24.1386]
[1719582586163,16.588,145.06,145.0,6.8965]
[1719582586351,16.588,145.06,145.01,6.896]
[1719582586863,16.588,145.06,145.02,6.8955]
[1719582587029,16.588,145.06,145.03,1.37873659]
[1719582587226,6.5547,145.07,145.03,1.37873659]
[1719582587433,6.5547,145.07,145.03,6.895]
[1719582587731,6.5547,145.07,145.04,1.37864357]
[1719582587935,6.5547,145.07,145.05,1.37864344]
[1719582588163,6.5547,145.07,145.03,1.37864362]
[1719582588451,6.5547,145.07,144.98,17.243]
[1719582588831,6.5547,145.07,145.0,17.2408]
[1719582589152,22.77089742,145.1,144.97,6.3377]
[1719582589153,22.77089742,145.1,145.02,17.2386]
[1719582589351,22.77089742,145.1,145.05,6.8941]
[1719582589658,22.77089742,145.1,145.06,8.27198617]
[1719582589854,22.77089742,145.1,145.06,8.27158617]
[1719582590025,15.5615,145.1,145.06,8.27158617]
[1719582590351,15.5615,145.1,145.06,1.37838617]
[1719582591232,6.1886,145.11,145.06,1.37838617]
[1719582591543,6.1886,145.11,145.04,22.90750234]
[1719582591747,6.1886,145.11,145.05,6.8938]
[1719582592336,15.9641,145.14,145.06,6.8936]
[1719582592531,15.9641,145.14,145.05,6.894]
[1719582592947,15.9641,145.14,145.04,29.80190234]
[1719582593451,15.9641,145.14,145.04,5.67120234]
[1719582593653,15.9641,145.14,145.04,6.8945]
[1719582593832,15.9641,145.14,145.05,6.8941]
[1719582594360,15.9641,145.14,145.04,6.8945]
[1719582594857,15.9641,145.14,145.05,6.894]
[1719582595264,15.9641,145.14,145.03,24.1322]
[1719582595465,15.9641,145.14,145.04,6.8946]
[1719582595834,15.9641,145.14,145.02,6.8952]
[1719582596071,15.9641,145.14,144.99,16.5664]
[1719582596072,20.0,145.13,145.0,17.2412]
[1719582596235,20.0,145.13,145.01,6.8956]
[1719582596439,20.0,145.13,145.02,6.8955]
[1719582596739,20.0,145.13,145.02,17.2386]
[1719582596993,20.0,145.13,145.05,6.8941]
[1719582597161,20.0,145.13,145.05,6.894]
[1719582597464,20.0,145.13,145.04,24.1308]
[1719582599554,20.0,145.13,145.06,17.234]
[1719582599768,20.0,145.13,145.07,6.893]
[1719582599944,20.0,145.13,145.06,17.234]
[1719582600141,20.0,145.13,145.06,24.1273]
[1719582600343,15.9641,145.14,145.06,17.234]
[1719582600540,15.9641,145.14,145.07,1.3780744]
[1719582600855,15.9641,145.14,145.07,6.893]
[1719582601053,15.9641,145.14,145.09,17.2306]
[1719582601260,15.9641,145.14,145.05,2.97633237]
[1719582601841,20.0,145.13,145.05,2.97633237]
[1719582603450,15.9641,145.14,145.06,17.2339]
[1719582603646,15.9641,145.14,145.05,2.97633237]
[1719582603859,15.9641,145.14,145.03,17.2373]
[1719582604061,20.0,145.13,145.03,17.2373]
[1719582604239,20.0,145.13,145.05,17.2348]
[1719582604446,20.0,145.13,145.06,6.8932]
[1719582604650,20.0,145.13,145.07,6.8931]
[1719582604855,20.0,145.13,145.06,6.8935]
[1719582605054,20.0,145.13,145.04,2.97653757]
[1719582606977,16.4789,145.11,145.04,2.97653757]
[1719582607180,20.0,145.1,145.04,2.97653757]
[1719582608041,16.4789,145.08,145.04,2.97653757]
[1719582608262,20.0,145.07,144.96,17.2454]
[1719582608470,20.0,145.07,144.97,20.0]
[1719582608852,20.0,145.07,144.97,6.8979]
[1719582609176,20.0,145.07,144.96,24.1437]
[1719582609351,21.4825,145.06,144.94,27.7184655]
[1719582609557,21.4825,145.06,144.94,7.7184655]
[1719582609558,56.04,145.05,144.94,7.7184655]
[1719582609759,56.04,145.05,144.95,6.8988]
[1719582609957,56.04,145.05,144.96,6.8982]
[1719582610155,56.04,145.05,144.97,6.8978]
[1719582610370,20.0,145.05,144.97,17.2445]
[1719582610565,20.0,145.05,144.97,24.1424]
[1719582611254,20.0,145.05,144.97,17.2445]
[1719582611460,20.0,145.05,144.97,24.1424]
[1719582611873,21.4825,145.06,144.99,24.1388]
[1719582612078,21.4825,145.06,144.94,0.8191655]
[1719582612455,21.4825,145.06,144.97,6.8979]
[1719582612801,21.4825,145.06,144.96,17.2454]
[1719582613972,20.0,145.05,144.94,0.8191655]
[1719582614160,20.0,145.05,144.96,6.898]
[1719582614360,20.0,145.05,144.97,6.8976]
[1719582614888,21.4825,145.06,144.97,17.2445]
[1719582615591,21.4825,145.06,144.96,6.898]
[1719582616054,20.0,145.05,144.95,6.8987]
[1719582617583,20.0,145.05,144.94,24.9663655]
[1719582617788,36.04,145.03,144.94,0.8191655]
[1719582620994,36.04,145.03,144.94,7.7184655]
[1719582621568,36.04,145.03,144.94,0.8191655]
[1719582622285,36.04,145.03,144.95,17.2471]
[1719582622788,20.0,145.05,144.97,6.8975]
[1719582622992,21.4825,145.06,144.97,17.2447]
[1719582623172,21.4825,145.06,144.99,24.1392]
[1719582623378,21.4825,145.06,144.97,6.8976]
[1719582624174,21.4825,145.06,144.98,17.2428]
[1719582624896,21.4825,145.06,144.99,6.8966]
[1719582625292,21.4825,145.06,144.98,24.1401]
[1719582625662,21.4825,145.06,144.97,6.8978]
[1719582625870,21.4825,145.06,144.98,6.8973]
[1719582626195,21.4825,145.06,144.97,17.2445]
[1719582626396,21.4825,145.06,144.98,6.8974]
[1719582626767,21.4825,145.06,144.99,6.897]
[1719582627575,21.4825,145.06,144.99,24.1391]
[1719582627993,21.4825,145.06,145.0,6.8964]
[1719582628192,21.4825,145.06,144.99,17.2422]
[1719582628576,53.5325,145.06,144.99,17.2422]
[1719582628774,53.5325,145.06,144.98,6.8974]
[1719582630866,53.5325,145.06,144.97,12.46402196]
[1719582631071,53.5325,145.06,144.96,17.2452]
[1719582631277,20.0,145.05,144.96,24.1433]
[1719582631485,21.4825,145.06,144.97,1.37913785]
[1719582631701,53.5325,145.06,144.95,100.0]
[1719582631899,53.5325,145.06,145.02,17.2388]
[1719582632214,15.2648,145.06,145.04,6.8945]
[1719582632494,29.10890223,145.1,145.04,1.37870626]
[1719582632665,29.10890223,145.1,145.03,24.1322]
[1719582632666,29.10890223,145.1,145.03,17.2373]
[1719582632870,29.10890223,145.1,145.0,17.2406]
[1719582633105,32.05,145.08,145.0,17.2406]
[1719582633408,32.05,145.08,145.0,24.137]
[1719582633582,32.05,145.08,144.99,6.8968]
[1719582633788,32.05,145.08,145.0,6.8964]
[1719582634082,32.05,145.08,145.0,6.8965]
[1719582634288,32.05,145.08,144.99,17.2423]
[1719582634875,32.05,145.08,144.99,24.1392]
[1719582635071,32.05,145.05,144.99,17.2423]
[1719582636072,32.05,145.05,144.99,24.1392]
[1719582636579,32.05,145.05,145.0,6.8965]
[1719582636882,32.05,145.05,144.99,17.2423]
[1719582637088,32.05,145.05,144.99,24.1392]
[1719582637473,32.05,145.05,145.0,6.8964]
[1719582637691,32.05,145.05,144.99,24.1391]
[1719582637998,32.05,145.05,145.0,6.8965]
[1719582638394,32.05,145.05,144.99,17.2423]
[1719582638699,32.05,145.05,144.99,24.139]
[1719582638898,32.05,145.05,144.94,28.85330311]
[1719582638899,29.10890223,145.1,145.01,17.2398]
[1719582639087,20.0,145.09,145.03,6.8949]
[1719582639298,52.05,145.09,145.03,6.8949]
[1719582639497,52.05,145.09,145.01,17.2398]
[1719582639802,52.05,145.09,144.98,17.2428]
[1719582639986,52.05,145.09,144.99,6.8967]
[1719582640173,52.05,145.09,145.0,6.8962]
[1719582641078,32.05,145.06,144.99,6.8969]
[1719582641798,32.05,145.06,144.95,17.2465]
[1719582642774,32.05,145.06,144.97,6.8978]
[1719582643296,32.05,145.06,144.98,6.8973]
[1719582644214,20.0,145.09,145.0,6.8962]
[1719582644371,32.05,145.08,145.02,6.8951]
[1719582644700,20.0,145.09,145.01,17.2396]
[1719582644921,20.0,145.09,145.03,6.895]
[1719582645508,20.0,145.09,145.01,24.1355]
[1719582645677,20.0,145.09,144.99,6.897]
[1719582646595,32.05,145.06,144.98,24.1402]
[1719582646813,32.05,145.06,144.99,6.897]
[1719582647589,32.05,145.06,145.0,6.8965]
[1719582648198,21.9685,145.1,145.06,6.8936]
[1719582648382,38.1987,145.13,145.08,6.8927]
[1719582648578,38.1987,145.13,145.06,24.1268]
[1719582648786,15.5172,145.14,145.09,1.37804982]
[1719582648997,15.5172,145.14,145.11,24.1189]
[1719582649396,15.5172,145.14,145.09,6.8918]
[1719582650389,15.5172,145.14,145.1,8.26963636]
[1719582650585,6.1487,145.17,145.1,1.37793636]
[1719582650807,6.1487,145.17,145.11,1.37782122]
[1719582651296,6.1487,145.17,145.13,6.8903]
[1719582651608,6.1487,145.17,145.12,24.1173]
[1719582651795,6.1487,145.17,145.13,6.8903]
[1719582652298,6.1487,145.17,145.14,1.37763776]
[1719582652698,6.1487,145.17,145.15,1.37763899]
[1719582652900,6.1487,145.17,145.09,17.2301]
[1719582653280,6.1487,145.17,145.11,17.2279]
[1719582653497,15.2011,145.18,145.13,17.2254]
[1719582653706,15.2011,145.18,145.14,6.8895]
[1719582654087,15.2011,145.18,145.15,8.26684291]
[1719582654482,6.1141,145.2,145.15,1.37754291]
[1719582655425,6.1141,145.2,145.1,17.2289]
[1719582655701,6.1141,145.2,145.12,6.8907]
[1719582656092,6.1141,145.2,145.07,17.2323]
[1719582656298,20.0,145.19,145.07,17.2323]
[1719582656682,20.0,145.19,145.09,17.2302]
[1719582656992,6.1141,145.2,145.11,17.2277]
[1719582657806,6.1141,145.2,145.11,24.1187]
[1719582659589,6.1141,145.2,145.15,1.37744024]
[1719582660480,6.1141,145.2,145.16,1.37744603]
[1719582660685,15.7314,145.21,145.16,1.37744603]
[1719582660909,15.7314,145.21,145.15,6.8893]
[1719582661219,15.7314,145.21,145.16,1.37729891]
[1719582661914,15.7314,145.21,145.1,100.0]
[1719582662203,15.7314,145.21,145.12,17.2261]
[1719582662382,15.7314,145.21,145.14,6.8894]
[1719582662582,15.7314,145.21,145.16,6.8888]
[1719582662782,15.7314,145.21,145.17,1.37725257]
[1719582662982,15.7314,145.21,145.18,1.37725257]
[1719582663510,15.3697,145.24,145.19,1.37722426]
[1719582663804,6.412,145.27,145.21,6.8862]
[1719582664018,6.412,145.27,145.22,1.37675284]
[1719582664186,6.412,145.27,145.22,18.59145284]
[1719582664389,16.6282,145.28,145.23,6.8854]
[1719582664706,16.6282,145.28,145.19,17.2179]
[1719582664916,16.6282,145.28,145.19,24.1052]
[1719582665405,16.6282,145.28,145.17,100.0]
[1719582665703,16.6282,145.28,145.22,6.8856]
[1719582665904,16.6282,145.28,145.22,17.2141]
[1719582666114,16.6282,145.28,145.24,6.8848]
[1719582666283,16.6282,145.28,145.24,17.2126]
[1719582666778,16.6282,145.28,145.21,24.1024]
[1719582666983,16.6282,145.28,145.21,17.216]
[1719582667699,16.6282,145.28,145.23,6.8854]
[1719582667891,16.6282,145.28,145.22,1.37660062]
[1719582668093,16.6282,145.28,145.15,128.11907285]
[1719582668094,16.6282,145.28,145.16,6.8888]
[1719582668297,6.0908,145.26,145.15,29.69787285]
[1719582668715,6.0908,145.26,145.15,5.58547285]